Cogmind - Beta 10 @@@ ROGUE MODE // 2020.09.20 @ 01:38:12 Player: DragoX Result: Destroyed by D-53 Grenadier with Mini Grenade Launcher Performance ------------- Evolutions (0) 0 Regions Visited (2) 400 Robots Destroyed (21) 105 Value Destroyed (176) 176 Prototype IDs (0) 0 Alien Tech Used (0) 0 Bonus (0) 0 TOTAL SCORE: 681 Bonus ------- None Cogmind --------- Core Integrity 0/250 Matter 26/300 Energy 100/100 System Corruption 0% Temperature Cool (0) Movement Core (300) Ox5 Location -10/Mines Parts ------- > --- POWER (1) -------- (None) > --- PROPULSION (2) --- (None) > --- UTILITY (2) ------ Large Storage Unit Transport Network Coupler > --- WEAPON (2) ------- (None) > --- INVENTORY (10) --- Large Storage Unit High-capacity Battery (400) Sensor Array ECM Suite Light Assault Rifle Mini Grenade Launcher Datajack Mining Laser Mining Laser Mining Claw Peak State ------------ > --- POWER ------------ Light Ion Engine > --- PROPULSION ------- Compact Wheel Compact Wheel > --- UTILITY ---------- Large Storage Unit Transport Network Coupler > --- WEAPON ----------- Mini Grenade Launcher Mini Grenade Launcher > --- INVENTORY -------- Large Storage Unit High-capacity Battery Sensor Array ECM Suite Small Laser Light Assault Rifle Datajack Mining Laser Mining Laser Mining Claw [Rating: 10] Favorites ----------- Power Light Ion Engine Engine Light Ion Engine Propulsion Compact Wheel Wheel Compact Wheel Utility Transport Network Coupler Storage Large Storage Unit Processor Transport Network Coupler Weapon Small Laser Energy Gun Small Laser Ballistic Gun Light Assault Rifle Launcher Mini Grenade Launcher Build | -11 -10 -10 ------- Run | Scr Mat Min Slots Evolved . | . . . Power . | . . . Propulsion . | . . . Utility . | . . . Weapon . | . . . Parts Attached 15 | 6 8 1 Power 1 | 1 . . Engine 1 | 1 . . Core . | . . . Reactor . | . . . Propulsion 2 | 2 . . Treads . | . . . Leg . | . . . Wheel 2 | 2 . . Hover . | . . . Flight . | . . . Utility 3 | 1 2 . Device . | . . . Storage 2 | 1 1 . Processor 1 | . 1 . Hackware . | . . . Protection . | . . . Artifact . | . . . Weapon 9 | 2 6 1 Energy Gun 2 | 1 . 1 Energy Cannon . | . . . Ballistic Gun 3 | 1 2 . Ballistic Cannon . | . . . Launcher 4 | . 4 . Special Weapon . | . . . Impact Weapon . | . . . Slashing Weapon . | . . . Piercing Weapon . | . . . Special Melee Weapon . | . . . Unidentified Prototypes . | . . . Parts Lost 5 | . . 5 Power 1 | . . 1 Propulsion 2 | . . 2 Utility . | . . . Weapon 2 | . . 2 Highest Loss Streak 5 | . . 5 Average Slot Usage (%) 98 | . 99 71 Engine 13 | . 14 7 Wheel 27 | . 28 14 Storage 14 | . 14 14 Processor 13 | . 13 14 Energy Gun 11 | . 11 . Ballistic Gun 9 | . 9 . Launcher 7 | . 6 21 Naked Turns . | . . . Heaviest Build 23 | 9 23 21 Greatest Support 32 | 32 32 32 Greatest Overweight (x) 5 | 1 . 5 Average Overweight (x) . | . . 3 Largest Inventory Capacity 10 | 6 10 10 Average Capacity 9 | 5 9 10 Most Carried 10 | 5 10 10 Average Carried 7 | 1 7 10 Final Capacity 10 | 6 10 10 Final Carried 10 | . 10 10 Class Distribution -------------------- 100% | Mutant Dominant Class ---------------- Mutant | -10/Materials Mutant | -10/Mines Resources | -11 -10 -10 ----------- Run | Scr Mat Min Matter Collected 234 | 173 61 . Remotely . | . . . Salvage Created 140 | . 106 34 Parts 25 | . 21 4 Haulers Intercepted 1 | . 1 . Recyclers Shooed . | . . . Parts Field Recycled . | . . . Retrieved Matter . | . . . Parts Self-Destructed . | . . . Prevented . | . . . Kills | -11 -10 -10 ------- Run | Scr Mat Min Combat Hostiles Destroyed 15 | . 6 9 Guns 1 | . 1 . AOE 14 | . 5 9 Classes Destroyed 7 | . 5 2 Worker 2 | . . 2 Builder 2 | . 2 . Tunneler 1 | . 1 . Hauler 1 | . 1 . Swarmer 3 | . 3 . Grunt 3 | . 3 . Assembled 9 | . . 9 Best Kill Streak 11 | . 8 11 Combat Bots Only 9 | . 5 9 Max Kills in Single Turn 8 | . 3 8 Gunslinging . | . . . Exploded 8 | . 3 8 Melee . | . . . Uniques/NPCs Destroyed . | . . . Combat | -11 -10 -10 -------- Run | Scr Mat Min Damage Taken 566 | . 159 407 Core 260 | . 52 208 Absorbed by Shields . | . . . Core Remaining (%) 100 | 100 . . Volleys Fired 13 | . 10 3 Largest 2 | . 2 2 Hottest 70 | . 70 60 Shots Fired 25 | . 19 6 Gun 7 | . 7 . Cannon . | . . . Launcher 18 | . 12 6 Special . | . . . Kinetic 3 | . 3 . Thermal 4 | . 4 . Explosive 18 | . 12 6 Electromagnetic . | . . . Robot Hit Streak 6 | . 4 6 Robot Miss Streak 4 | . 4 1 Penetration Max . | . . . Secondary Targets . | . . . Shots Hit Robots 10 | . 7 3 Core Hits 41 | . 17 24 Critical Hits . | . . . Critical Kills . | . . . Critical Parts Destroyed . | . . . Melee Attacks . | . . . Impact . | . . . Slashing . | . . . Piercing . | . . . Sneak Attacks . | . . . Combat Hostiles . | . . . Follow-up Attacks . | . . . Damage Inflicted 1629 | . 744 885 Guns 22 | . 22 . Cannons . | . . . Explosions 1607 | . 722 885 Melee . | . . . Ramming . | . . . Kinetic . | . . . Thermal 22 | . 22 . Explosive 1607 | . 722 885 Electromagnetic . | . . . Impact . | . . . Slashing . | . . . Piercing . | . . . Highest Corruption . | . . . Average Corruption . | . . . Corruption Purged . | . . . Overload Shots . | . . . Overflow Damage 1 | . . 1 Projectiles . | . . . Explosions 1 | . . 1 Melee . | . . . Knockbacks . | . . . Impact . | . . . Kinetic . | . . . Secondary . | . . . Self-Inflicted Damage 72 | . 30 42 Shots 3 | . 1 2 Rammed . | . . . Targets Rammed . | . . . Kicked . | . . . Crushed . | . . . Highest Temperature 27 | . 27 15 Average Temperature 16 | . 17 10 Received Heat Transfer 165 | . 45 120 Siege Activations . | . . . Robots Corrupted . | . . . Combat Hostiles . | . . . Parts Fried . | . . . Impact Corruptions . | . . . Robots Melted . | . . . Combat Hostiles . | . . . Parts Melted . | . . . Heat Transferred 50 | . 50 . Parts Sabotaged . | . . . Parts Stolen . | . . . Parts Stripped . | . . . Power Chain Reactions . | . . . Missiles Intercepted . | . . . Alert | -11 -10 -10 ------- Run | Scr Mat Min Peak Influence 155 | . 155 11 Initial 1 | . . 1 Average 37 | . 40 3 Maximum Alert Level . | . . . Low Security (%) 100 | 100 100 100 Level 1 . | . . . Level 2 . | . . . Level 3 . | . . . Level 4 . | . . . Level 5 . | . . . High Security . | . . . Max Security . | . . . Squads Dispatched . | . . . Investigation . | . . . Extermination . | . . . Reinforcement . | . . . Assault . | . . . Garrison . | . . . Intercept . | . . . Construction Impeded . | . . . Haulers Reinforced . | . . . Stealth | -11 -10 -10 --------- Run | Scr Mat Min Distress Signals . | . . . Communications Jammed . | . . . Distress Signals . | . . . Times Spotted 31 | . 9 22 Peak Tracking Total 20 | . 4 20 Tactical Retreats . | . . . Traps | -11 -10 -10 ------- Run | Scr Mat Min Traps Triggered . | . . . Indirectly . | . . . Trap Hack Attempts . | . . . Triggered . | . . . Disarmed . | . . . Reprogrammed . | . . . Reused . | . . . Traps Extracted . | . . . Installed . | . . . Triggered . | . . . Machines | -11 -10 -10 ---------- Run | Scr Mat Min Machines Disabled 1 | . 1 . Max in Single Turn 1 | . 1 . Machines Sabotaged . | . . . Garrisons Compromised . | . . . Overloaded Fab Kills . | . . . Fab Network Shutdowns . | . . . Hacking | -11 -10 -10 --------- Run | Scr Mat Min Machines Accessed 7 | . 7 . Terminals 6 | . 6 . Fabricators . | . . . Repair Stations . | . . . Recycling Units 1 | . 1 . Scanalyzers . | . . . Garrison Access . | . . . Total Hacks 18 | . 18 . Successful 10 | . 10 . Failed 8 | . 8 . Catastrophic 2 | . 2 . Database Lockouts . | . . . Manual 18 | . 18 . Terminals 17 | . 17 . Fabricators . | . . . Repair Stations . | . . . Recycling Units 1 | . 1 . Scanalyzers . | . . . Garrison Access . | . . . Terminal Hacks 3 | . 3 . Branch Access Points 1 | . 1 . Alert Level 1 | . 1 . Registered Components 1 | . 1 . Fabricator Hacks . | . . . Repair Station Hacks . | . . . Recycling Unit Hacks . | . . . Scanalyzer . | . . . Garrison Access Hacks . | . . . Unauthorized Hacks 7 | . 7 . Terminals 6 | . 6 . Botnet 5 | . 5 . Operators 1 | . 1 . Fabricators . | . . . Repair Stations . | . . . Recycling Units 1 | . 1 . Monitor 1 | . 1 . Scanalyzers . | . . . Garrison Access . | . . . Data Cores Recovered . | . . . Used . | . . . Hacking Detections 5 | . 5 . Full Trace Events 3 | . 3 . Feedback Events . | . . . Feedback Blocked . | . . . Robot Schematics Acquired . | . . . Robots Built . | . . . Matter . | . . . Time . | . . . Total Robot Build Rating . | . . . Part Schematics Acquired . | . . . Parts Built . | . . . Matter . | . . . Time . | . . . Total Part Build Rating . | . . . Parts Repaired . | . . . Time . | . . . Parts Recycled . | . . . Recycled Matter . | . . . Retrieved Matter . | . . . Retrieved Components . | . . . Parts Scanalyzed . | . . . Part Schematics Acquired . | . . . Parts Damaged . | . . . Bothacking | -11 -10 -10 ------------ Run | Scr Mat Min Used RIF Installer . | . . . Robots Hacked . | . . . Non-combat . | . . . Combat . | . . . Robot Hacks Applied . | . . . Relay Couplers Released . | . . . Robots Rewired . | . . . Allies Hacked . | . . . Hacks Repelled . | . . . Allies | -11 -10 -10 -------- Run | Scr Mat Min Total Allies . | . . . Largest Group . | . . . Highest-Rated Group . | . . . Highest-Rated Ally . | . . . Total Orders . | . . . Ally Attacks . | . . . Total Damage . | . . . Kills . | . . . Allies Corrupted . | . . . Allies Melted . | . . . Intel | -11 -10 -10 ------- Run | Scr Mat Min Robot Analysis Total . | . . . Derelict Logs Recovered . | . . . Drone Launches . | . . . Drone Recoveries . | . . . Exploration | -11 -10 -10 ------------- Run | Scr Mat Min Turns Passed 884 | 39 820 25 Spaces Moved 516 | 28 482 6 Core 16 | 12 . 4 Treads . | . . . Legs . | . . . Wheels 500 | 16 482 2 Hover . | . . . Flight . | . . . Fastest Speed 50 | 50 100 100 Average Speed 101 | 98 100 233 Slowest Speed 300 | 100 100 300 Overloaded Moves . | . . . Propulsion Burnouts . | . . . Robots Hopped . | . . . Cave-ins Triggered . | . . . Exploration Rate (%) 30 | 3 82 6 Regions Visited 2 Branch Regions 1 Pre-discovered Areas . | . . . Known Exits Taken 1 | . 1 . Unknown Exits Taken 1 | 1 . . Scrap Searched . | . . . Spaces Dug 21 | . 21 . Terrain Destroyed 122 | . 65 57 Melee . | . . . Projectile . | . . . AOE 122 | . 65 57 Terrain Rammed . | . . . Walls Destroyed . | . . . Machines Disabled . | . . . Actions | -11 -10 -10 --------- Run | Scr Mat Min Total 849 | 39 800 10 Wait 282 | . 282 . Move 514 | 27 481 6 Hop . | . . . Pick Up 21 | 6 15 . Fast Attach . | . . . Attach 7 | 6 1 . Detach . | . . . Swap 8 | . 7 1 Drop 4 | . 4 . Fire 13 | . 10 3 Melee . | . . . Ram . | . . . Kick . | . . . Crush . | . . . Escape Stasis . | . . . Rewire . | . . . Trap . | . . . Miscellaneous . | . . . Route ------- -11/Scrapyard -10/Materials (discovered 4 exits: [*Mat x3] / *Min) -10/Mines History --------- Turn | Location | Event 26 | -11/Scrapyard | Discovered new exit (range 12) 40 | -11/Scrapyard | Entered Materials 137 | -10/Materials | Discovered new exit (range 9) 236 | -10/Materials | Identified exit to Mines 279 | -10/Materials | Discovered new exit (range 3) 308 | -10/Materials | Build established: Mutant 368 | -10/Materials | Discovered new exit (range 10) 599 | -10/Materials | Discovered new exit (range 16) 860 | -10/Materials | Entered Mines 861 | -10/Mines | Assembled infested the area 877 | -10/Mines | Core integrity fell below 50% 879 | -10/Mines | Core integrity fell below 20% 885 | -10/Mines | Destroyed by D-53 Grenadier with Mini Grenade Launcher Last Messages --------------- 00867_ as-24482 destroyed. 00867_ as-78278 destroyed. 00867_ Destroyed Asb. Hover Unit. 00867_ as-17521 destroyed. 00867_ as-59136 destroyed. 00868_ The unstable cave ceiling collapses. 00871_ Com. Wheel destroyed. 00872_ Lgt. Ion Engine destroyed. 00874_ The unstable cave ceiling collapses. 00875_ Sml. Laser destroyed. 00876_ as-78258 destroyed. 00876_ as-88342 destroyed. 00878_ U-05 Engineer lays Concrete. 00879_ U-05 Engineer builds a Wall. 00880_ as-85549 destroyed. 00882_ R-06 Scavenger collects Wheel. 00883_ R-06 Scavenger destroyed. 00883_ as-62353 destroyed. 00883_ Mni. Grenade Launcher destroyed. 00883_ as-63180 destroyed. Map ----- +----------------------------------------------------+ | ?????????????????????????????? | | ?????????????????????????????? | | ?????????????????????????????? | | ?????????????????????????????? | | ?????????????????????????????? | | ?????????????????????????????? | | ?????????????????????????????? | | ?????????????????????????????? | | ?????????????????????????????? | | ?????????????????????????????? | | ?????????????????????????????? | | ?????????????????????????????? | | ?????????????????????????????? | | ?????????????????????????????? | | ?????????????????????????????? | | ?????????????????????????????? | | ?????????????????????????????? | | ?????????????????????????????? | | ?????????????????????????????? | | ?????????????????????????????? | | ????###??????????????????????? | | ????# ??????????????????????? | | ???## ###????????????????????? | | ??## #????????????????????? | | ??# #????????????????????? | | ???# @ #????????????????????? | | ???# ##??##???#????????????? | | ???# # ##???????????? | | ?#### #???????????? | | ?# # #??????????? | | ?# = ????????? | | ?# d ##?????????? | | ?# #??????????? | | ?# !%= ##??????????? | | ?#### d % #???????????? | | ????#### #???????????? | | ????????#u < ????????????? | | ????????? ## ???????????? | | ?????????##?? ???????????? | | ?????????????? ???????????? | | ???????????????##????????????? | | ?????????????????????????????? | | ?????????????????????????????? | | ?????????????????????????????? | | ?????????????????????????????? | | ?????????????????????????????? | | ?????????????????????????????? | | ?????????????????????????????? | | ?????????????????????????????? | | ?????????????????????????????? | +----------------------------------------------------+ Best States ------------- Heat Dissipation 25 Energy Generation 10 Energy Capacity 125 Matter Stores 213 Matter Capacity 300 Sight Range 16 Terrain Scan Density 10 Evasion (%) 40 Item Schematics ----------------- None Robot Schematics ------------------ None Fabricated ------------ Nothing Alien Tech Used ----------------- None Achievements -------------- Hunted Loot Pinata Challenges ------------ None Game ------ Seed AluminumMiniBattery Manual? 0 Play Time 00:13:10 Cumulative 2.8 hours Start 2020.09.20 @ 01:24:03 End 2020.09.20 @ 01:38:12 Sessions 1 Manual Loads 0 Difficulty Rogue Special Mode None Game No. 7 Rogue 7 Adventurer 0 Explorer 0 Win Type - Total 0 Types 0/0/0/0/0/0/0/0/0 Lore% 2 Gallery% 4 Achievement% 7 Wizard Run 0 Options --------- ASCII 0 Keyboard 0 Movement Mouse Keybinds 0 Fullscreen 1 Font 18/Cog Map View 76x50 Tactical HUD 1 Map Filters NONE Filters NONE Steam 0 RUN: a2970db7-5ea7-43a0-a6ca-dff9f688cd5c